bitfinex/quotes_ETHUSD_20241013
["timestamp","ask_amount","ask_price","bid_price","bid_amount"]
[1728833374733,3.53700602,2444.0,2443.9,4.0918]
[1728833374958,7.01409435,2444.0,2443.9,4.0918]
[1728833377466,3.8171,2443.9,2443.7,4.09207]
[1728833377675,3.0,2443.7,2443.5,4.09237]
[1728833377881,3.7354106,2443.7,2443.6,4.09232]
[1728833378189,3.80840129,2443.7,2443.6,4.09232]
[1728833378480,3.80840129,2443.7,2443.5,4.09237]
[1728833379073,0.80840129,2443.7,2443.6,4.09232]
[1728833379245,0.07299069,2443.7,2443.6,4.09232]
[1728833379449,0.07299069,2443.7,2443.6,4.86582]
[1728833379676,3.0,2443.9,2443.7,4.09211]
[1728833381170,3.0,2443.9,2443.6,4.09232]
[1728833381375,6.40009649,2444.0,2443.6,4.09232]
[1728833381376,3.0,2443.7,2443.6,4.09232]
[1728833382283,0.94000965,2443.8,2443.7,4.09215]
[1728833382780,3.0,2443.9,2443.8,4.09198]
[1728833383996,3.8171,2443.9,2443.8,4.09198]
[1728833384198,3.0,2443.9,2443.8,4.09198]
[1728833384567,3.8171,2444.1,2444.0,4.09165]
[1728833384913,0.4310806,2444.2,2444.1,4.09148]
[1728833385054,3.53700602,2444.4,2444.3,4.09115]
[1728833385254,4.01425682,2444.4,2444.3,4.09115]
[1728833385555,0.8171,2444.3,2444.0,4.09152]
[1728833385783,3.53700602,2444.1,2444.0,4.09152]
[1728833386307,6.53700602,2444.1,2444.0,4.09152]
[1728833388052,1.66658067,2444.3,2444.0,4.09152]
[1728833388053,7.35410602,2444.3,2444.2,4.09131]
[1728833388254,28.62749445,2444.3,2444.2,4.09131]
[1728833388473,27.81039445,2444.3,2444.2,4.09131]
[1728833388990,24.81039445,2444.3,2444.2,4.09131]
[1728833389308,10.03335164,2444.3,2443.9,4.09172]
[1728833389501,0.84682625,2444.1,2443.9,4.09172]
[1728833389800,3.74869934,2444.0,2443.9,4.09172]
[1728833390154,3.0,2443.9,2443.8,8.18377]
[1728833390458,3.0,2443.9,2443.8,4.09188]
[1728833394014,3.0,2443.9,2443.7,4.09213]
[1728833394172,6.53700602,2443.8,2443.5,4.86589]
[1728833394372,3.0,2443.7,2443.5,4.86589]
[1728833394574,3.0,2443.7,2443.5,8.95827]
[1728833394799,3.0,2443.7,2443.6,4.09232]
[1728833395166,0.7591,2443.6,2442.9,0.8162]
[1728833395368,8.91191602,2443.5,2443.4,4.09265]
[1728833395570,6.53700602,2443.5,2443.4,4.09265]
[1728833397313,7.38383227,2443.5,2443.4,4.09265]
[1728833398018,7.45649934,2443.5,2443.4,4.09265]
[1728833399617,7.45859593,2443.5,2443.4,4.09265]
[1728833401176,8.64168004,2443.5,2443.4,4.09265]
[1728833401397,8.40549008,2443.5,2443.4,4.09265]
[1728833401612,9.67559703,2443.5,2443.4,4.09265]
[1728833401770,8.91369703,2443.5,2443.4,4.09265]
[1728833401971,4.10658406,2443.5,2443.4,4.09265]
[1728833402218,0.92200744,2443.5,2443.4,4.09265]
[1728833403226,0.07266707,2443.5,2443.4,4.09265]
[1728833403989,0.07266707,2443.5,2443.4,4.87315]
[1728833404214,0.07266707,2443.5,2443.4,5.42315]
[1728833406249,0.07266707,2443.5,2443.4,4.87315]
[1728833406940,0.59187851,2443.5,2443.4,4.87315]
[1728833407085,1.44121888,2443.5,2443.4,4.87315]
[1728833407283,4.44121888,2443.5,2443.4,4.09265]
[1728833407917,5.96504467,2443.5,2443.4,4.09265]
[1728833408683,6.38581125,2443.5,2443.4,4.09265]
[1728833409192,5.1157043,2443.5,2443.4,4.09265]
[1728833409381,5.96672758,2443.5,2443.4,4.09265]
[1728833409695,0.92369035,2443.5,2443.4,4.09265]
[1728833409903,3.92369035,2443.5,2443.4,4.09265]
[1728833410085,0.92369035,2443.5,2443.4,4.09265]
[1728833410484,0.07266707,2443.5,2443.4,4.09265]
[1728833410720,0.07266707,2443.5,2443.4,4.87315]
[1728833411821,0.07266707,2443.5,2443.4,5.42315]
[1728833413206,0.07266707,2443.5,2443.4,9.91185607]
[1728833413403,0.07266707,2443.5,2443.4,11.99553798]
[1728833413801,0.07266707,2443.5,2443.4,12.85290257]
[1728833414102,0.85102328,2444.4,2444.3,4.09115]
[1728833414305,0.85102328,2444.5,2444.4,5.46228]
[1728833414528,0.85102328,2444.7,2444.6,4.09064]
[1728833414829,0.85102328,2444.7,2444.6,4.64064]
[1728833415060,0.85102328,2444.8,2444.7,4.09048]
[1728833415531,1.27010695,2444.9,2444.7,4.09048]
[1728833415532,0.85102328,2444.9,2444.8,4.91161]
[1728833415689,0.85102328,2445.0,2444.9,4.09014]
[1728833416090,0.85102328,2445.1,2445.0,4.08997]
[1728833416520,0.85102328,2445.2,2445.1,4.08981]
[1728833416929,2.12113023,2445.4,2445.2,4.08964]
[1728833417226,0.85102328,2445.4,2445.3,4.87877]
[1728833417601,0.85102328,2445.6,2445.4,4.08931]
[1728833417827,0.85102328,2445.6,2445.5,4.08914]
[1728833418744,0.85102328,2445.7,2445.6,4.08897]
[1728833419119,1.41684751,2445.7,2445.6,4.08897]
[1728833419319,4.1029363,2445.7,2445.6,4.08897]
[1728833419534,7.1029363,2445.7,2445.6,4.08897]
[1728833421004,3.0,2445.8,2445.7,4.08878]
[1728833421216,3.53711207,2445.9,2445.8,4.08864]
[1728833421632,0.7647,2446.0,2445.9,4.08847]
[1728833422000,4.38813535,2446.1,2446.0,4.0883]
[1728833422001,0.85102328,2446.1,2446.0,4.0883]
[1728833422206,0.7647,2446.2,2446.1,4.08814]
[1728833422542,1.54965334,2446.2,2446.1,4.08814]
[1728833423264,0.78495334,2446.2,2446.1,4.08814]
[1728833423553,0.58012453,2446.2,2446.1,4.08814]
[1728833423700,0.58012453,2446.2,2445.2,4.08949]
[1728833423701,0.7647,2446.1,2445.8,4.08853]
[1728833423903,3.58012453,2446.0,2445.9,4.08838]
[1728833424450,3.58012453,2446.0,2445.8,4.08854]
[1728833424745,0.78819366,2445.9,2445.8,4.08854]
[1728833424947,3.78819366,2445.9,2445.8,4.08854]
[1728833425411,0.7647,2445.7,2445.2,4.08953]
[1728833425688,5.461,2445.8,2445.2,4.08953]
[1728833425689,3.0,2445.3,2445.2,4.08953]
[1728833425854,3.0,2445.4,2445.3,4.08945]
[1728833426754,1.38727,2445.6,2445.5,4.08914]
[1728833426996,0.62257,2445.6,2445.5,4.08914]
[1728833428135,3.0,2445.8,2445.7,4.08878]
[1728833428456,0.78819366,2445.9,2445.8,4.08864]
[1728833428877,4.32530573,2445.9,2445.8,4.08864]
[1728833429761,7.32530573,2445.9,2445.8,4.08864]
[1728833430508,3.0,2446.2,2445.8,4.08864]
[1728833430669,3.7647,2446.4,2446.3,4.0878]
[1728833430870,2.19016634,2446.6,2446.5,4.08747]
[1728833431067,0.67843991,2446.6,2446.5,4.08747]
[1728833431923,1.34482453,2446.8,2446.5,4.08747]
[1728833431924,1.34482453,2446.8,2446.7,4.08713]
[1728833432697,1.76472489,2446.8,2446.6,4.08727]
[1728833432970,7.1172366,2446.7,2446.6,4.08721]
[1728833433712,0.58012453,2446.7,2446.6,4.08721]
[1728833434018,7.31,2447.0,2446.9,4.0868]
[1728833434172,0.58012453,2447.0,2446.9,4.0868]
[1728833434365,1.07310819,2447.0,2446.9,4.0868]
[1728833435187,4.07310819,2447.0,2446.9,4.0868]
[1728833436103,1.07310819,2447.0,2446.9,4.0868]
[1728833437178,0.49298366,2447.0,2446.9,4.0868]
[1728833437661,3.49298366,2447.0,2446.9,4.0868]
[1728833438064,7.03009573,2447.0,2446.7,4.08704]
[1728833438273,3.0,2446.7,2446.6,4.08727]
[1728833438578,6.53711207,2446.7,2446.5,4.08745]
[1728833438787,6.53711207,2446.7,2446.5,4.08737]
[1728833439477,3.0,2446.5,2446.3,4.0877]
[1728833439677,0.7599,2446.8,2446.3,4.0877]
[1728833439678,8.83611207,2446.4,2446.3,4.0877]
[1728833439887,6.53711207,2446.4,2446.3,4.0877]
[1728833441679,6.53711207,2446.4,2446.2,4.08795]
[1728833441905,27.28701207,2446.3,2445.8,4.08862]
[1728833442226,6.53711207,2445.9,2445.8,4.08862]
[1728833442398,7.54453448,2445.9,2445.8,4.08862]
[1728833444523,3.7599,2445.8,2445.7,4.0888]
[1728833444726,3.7599,2445.8,2445.6,4.08896]
[1728833445023,3.7599,2445.8,2445.5,4.08901]
[1728833445024,26.52711207,2445.7,2445.5,4.08901]
[1728833445546,26.52711207,2445.7,2445.3,4.08935]
[1728833445547,19.99,2445.6,2445.4,4.08922]
[1728833445697,9.18982328,2445.5,2445.4,4.08922]
[1728833446085,9.25108078,2445.5,2445.4,4.08922]
[1728833446631,6.59836957,2445.5,2445.4,4.08922]
[1728833447696,3.59836957,2445.5,2445.4,4.85012]
[1728833448111,0.0612575,2445.5,2445.4,4.85012]
[1728833449231,3.0612575,2445.5,2445.4,4.85012]
[1728833449826,0.0612575,2445.5,2445.4,4.85012]
[1728833450029,0.0612575,2445.5,2445.4,5.744067]
[1728833450236,3.53711207,2445.7,2445.4,5.744067]
[1728833450510,3.53711207,2445.7,2445.6,4.08897]
[1728833451216,6.53711207,2445.7,2445.6,4.08897]
[1728833451847,6.53711207,2445.9,2445.8,4.86514]
[1728833453516,6.53711207,2445.9,2445.8,4.08864]
[1728833453926,3.0,2445.9,2445.8,4.08864]
[1728833457232,6.53711207,2445.9,2445.8,4.08864]
[1728833457956,3.0,2445.9,2445.8,4.08864]
[1728833458144,6.53711207,2446.1,2446.0,4.0883]
[1728833460539,7.35134746,2446.1,2446.0,4.0883]
[1728833461136,7.4130945,2446.1,2446.0,4.0883]
[1728833461335,7.4130945,2446.1,2445.1,4.08971]
[1728833461336,6.2784,2446.0,2445.7,4.08868]
[1728833461571,6.2784,2446.0,2445.4,4.08921]
[1728833461572,0.8174,2445.6,2445.4,4.08921]
[1728833461733,6.53711207,2445.5,2445.4,4.08921]
[1728833461946,6.59885909,2445.5,2445.4,4.08921]
[1728833462274,7.34327918,2445.5,2445.4,4.08921]
[1728833462668,8.18862099,2445.5,2445.4,4.08921]
[1728833462833,3.0,2445.4,2445.3,4.08944]
[1728833463037,4.72408567,2445.4,2445.3,4.08944]
[1728833463478,3.06134386,2445.4,2445.3,4.08944]
[1728833464077,3.06134386,2445.4,2445.3,4.85414]
[1728833464244,3.06018072,2445.4,2445.3,4.85414]
[1728833465304,0.06134386,2445.4,2445.3,4.85414]
[1728833465449,3.53711207,2445.7,2445.3,4.85414]
[1728833465631,3.53711207,2445.7,2445.6,4.08897]
[1728833466233,6.53711207,2445.7,2445.6,4.08897]
[1728833467546,7.27535746,2445.7,2445.6,4.08897]
[1728833467967,8.12069927,2445.7,2445.6,4.08897]
[1728833469676,6.53711207,2445.7,2445.6,4.08897]
[1728833470418,0.84534181,2445.9,2445.8,4.85334]
[1728833470419,3.53711207,2445.9,2445.8,4.85334]
[1728833470621,1.27010695,2446.1,2445.8,4.85334]
[1728833470622,4.38245388,2446.1,2445.9,4.08847]
[1728833470773,4.38245388,2446.1,2446.0,4.0883]
[1728833470774,0.84534181,2446.1,2446.0,4.0883]
[1728833470974,0.84534181,2446.2,2446.1,4.08814]
[1728833472386,3.84534181,2446.2,2446.1,4.08814]
[1728833476123,3.90700246,2446.2,2446.1,4.08814]
[1728833478789,3.06166065,2446.2,2446.1,4.08814]
[1728833480896,3.90700246,2446.2,2446.1,4.08814]
[1728833481102,3.06166065,2446.2,2446.1,4.08814]
[1728833481488,3.90700246,2446.2,2446.1,4.08814]
[1728833481691,3.06166065,2446.2,2446.1,4.08814]
[1728833481889,6.02128975,2446.2,2446.1,4.08814]
[1728833482225,6.44867268,2446.2,2446.1,4.08814]
[1728833482522,6.87730131,2446.2,2446.1,4.08814]
[1728833483387,4.7511828,2446.2,2446.1,4.08814]
[1728833483726,4.33790877,2446.2,2446.1,4.08814]
[1728833483889,3.06166065,2446.2,2446.1,4.08814]
[1728833484103,4.76326031,2446.2,2446.1,4.08814]
[1728833484298,4.33810317,2446.2,2446.1,4.08814]
[1728833484496,4.33817652,2446.2,2446.1,4.08814]
[1728833484998,3.06166065,2446.2,2446.1,4.08814]
[1728833485936,0.91281255,2446.2,2446.1,4.90864]
[1728833486098,0.91281255,2446.2,2446.1,4.08814]
[1728833486436,2.58787433,2446.2,2446.1,4.08814]
[1728833486639,3.01412359,2446.2,2446.1,4.08814]
[1728833487138,6.01423215,2446.2,2446.1,4.08814]
[1728833487350,3.88627467,2446.2,2446.1,4.08814]
[1728833487499,6.01428911,2446.2,2446.1,4.08814]
[1728833490164,5.58883378,2446.2,2446.1,4.08814]
[1728833490454,4.76425017,2446.2,2446.1,4.08814]
[1728833491241,1.33872966,2446.2,2446.1,4.08814]
[1728833492422,3.06166065,2446.2,2446.1,4.08814]
[1728833493261,4.33906837,2446.2,2446.1,4.08814]
[1728833493648,3.06166065,2446.2,2446.1,4.08814]
[1728833493853,4.3391461,2446.2,2446.1,4.08814]
[1728833495395,3.06166065,2446.2,2446.1,4.08814]
[1728833495539,3.91332078,2446.2,2446.1,4.08814]
[1728833497569,0.06166065,2446.2,2446.1,4.08814]
[1728833498069,0.85166013,2446.3,2446.2,4.08797]
[1728833499253,4.3887722,2446.3,2446.2,4.08797]
[1728833499769,7.3887722,2446.3,2446.2,4.08797]
[1728833500567,7.81459752,2446.3,2446.2,4.08797]
[1728833500766,6.53711207,2446.3,2446.2,4.08797]
[1728833500974,7.3884094,2446.3,2446.2,4.08797]
[1728833505881,0.85129733,2446.3,2446.2,4.86437]
[1728833506081,0.91158007,2446.3,2446.2,4.86437]
[1728833506887,4.44869214,2446.3,2446.2,4.86437]
[1728833507038,7.44869214,2446.3,2446.2,4.86437]
[1728833508295,0.06028274,2446.3,2446.2,4.86437]
[1728833508471,3.0,2446.3,2446.2,4.86437]
[1728833508673,3.06031952,2446.3,2446.2,4.86437]
[1728833512374,0.06031952,2446.3,2446.2,4.86437]
[1728833512715,3.59864969,2446.9,2446.7,4.0871]
[1728833512716,0.85129733,2446.8,2446.7,4.0871]
[1728833512910,1.68758545,2446.9,2446.7,4.0871]
[1728833512911,1.10346444,2446.9,2446.8,4.08697]
[1728833513278,4.0098859,2446.9,2446.8,4.08697]
[1728833513482,2.38299963,2446.9,2446.8,4.08697]
[1728833513683,5.38298745,2446.9,2446.8,4.08697]
[1728833513911,8.92009952,2446.9,2446.8,4.08697]
[1728833514765,8.84439811,2446.9,2446.8,4.08697]
[1728833515564,10.97695447,2446.9,2446.8,4.08697]
[1728833517685,8.84439811,2446.9,2446.8,4.08697]
[1728833517885,14.19955447,2446.9,2446.8,4.08697]
[1728833518089,12.06699811,2446.9,2446.8,4.08697]
[1728833518829,3.2226,2446.6,2446.4,4.08754]
[1728833518970,12.95769165,2446.5,2446.3,4.08773]
[1728833519178,12.95769165,2446.5,2446.1,4.08801]
[1728833519179,0.7616,2446.2,2446.1,4.08801]
[1728833519391,30.6256628,2446.2,2446.1,4.08801]
[1728833519645,5.461,2446.1,2445.7,4.08868]
[1728833519796,5.57825858,2445.8,2445.7,4.08868]
[1728833519996,8.57825858,2445.8,2445.7,4.08868]
[1728833520332,10.21212306,2445.8,2445.7,4.08868]
[1728833521341,11.85870596,2445.8,2445.7,4.08868]
[1728833521538,7.87485322,2445.8,2445.7,4.08868]
[1728833522539,0.91145438,2445.8,2445.7,4.08868]
[1728833522704,0.05840465,2445.8,2445.7,4.08868]
[1728833523139,3.59551672,2445.8,2445.7,4.08868]
[1728833523342,7.44856645,2445.8,2445.7,4.08868]
[1728833523662,6.59551672,2445.8,2445.7,4.08868]
[1728833523855,7.44856645,2445.8,2445.7,4.08868]
[1728833524070,6.59551672,2445.8,2445.7,4.08868]
[1728833524445,0.05840465,2445.8,2445.7,4.08868]
[1728833524640,0.05840465,2445.8,2445.7,4.989223]
[1728833524859,0.85304973,2446.1,2445.7,4.989223]
[1728833525055,0.85304973,2446.1,2446.0,4.0883]
[1728833525245,0.85304973,2446.1,2446.0,4.9161]
[1728833525448,0.85304973,2446.2,2446.1,4.08814]
[1728833525675,1.2793365,2446.3,2446.2,4.08797]
[1728833525676,0.85304973,2446.3,2446.2,4.08797]
[1728833525880,0.85304973,2446.3,2446.2,4.91577]
[1728833526045,1.70603788,2446.5,2446.4,4.08763]
[1728833526046,0.85304973,2446.5,2446.4,4.08763]
[1728833526580,0.85304973,2446.6,2446.5,4.08747]
[1728833526950,0.85304973,2446.7,2446.5,4.08747]
[1728833527137,0.85304973,2446.7,2446.6,4.0873]
[1728833528273,3.0,2446.7,2446.6,4.0873]
[1728833528431,0.7616,2446.6,2445.8,0.8278]
[1728833528631,6.53711207,2446.1,2446.0,4.08824]
[1728833528863,0.85270919,2446.4,2446.2,4.08797]
[1728833528864,6.53711207,2446.3,2446.2,4.08797]
[1728833529260,7.38982126,2446.3,2446.2,4.08797]
[1728833529432,3.85270919,2446.3,2446.2,4.08797]
[1728833529646,3.85270919,2446.4,2446.3,4.0878]
[1728833530551,3.0,2446.4,2446.3,4.0878]
[1728833530780,3.85270919,2446.4,2446.3,4.0878]
[1728833531968,3.0,2446.4,2446.3,4.0878]
[1728833532169,0.85270919,2446.6,2446.4,4.08763]
[1728833532512,0.85270919,2446.6,2446.5,4.08747]
[1728833532975,0.85270919,2446.7,2446.6,4.0873]
[1728833533382,4.38982126,2446.7,2446.6,4.0873]
[1728833534196,7.38982126,2446.7,2446.6,4.0873]
[1728833535802,6.53711207,2446.7,2446.6,4.0873]
[1728833536146,6.59558163,2446.7,2446.6,4.0873]
[1728833536304,7.44829082,2446.7,2446.6,4.0873]
[1728833536912,6.59558163,2446.7,2446.6,4.0873]
[1728833537543,7.44829082,2446.7,2446.6,4.0873]
[1728833538409,6.59558163,2446.7,2446.6,4.0873]
[1728833538735,7.44829082,2446.7,2446.6,4.8836]
[1728833539041,6.59558163,2446.7,2446.6,4.8836]
[1728833539256,0.91117875,2446.7,2446.6,4.8836]
[1728833539416,0.05846956,2446.7,2446.6,4.8836]
[1728833539743,0.85270919,2446.8,2446.7,4.08713]
[1728833539948,3.85270919,2446.8,2446.7,4.08713]
[1728833540523,0.85270919,2446.8,2446.7,4.08713]
[1728833540718,0.85270919,2446.8,2446.7,5.39295]
[1728833541219,0.85270919,2447.0,2446.8,4.08697]
[1728833541552,0.85270919,2447.0,2446.9,4.0868]
[1728833541756,4.38982126,2447.0,2446.9,4.0868]
[1728833542049,5.64194857,2447.0,2446.9,4.0868]
[1728833542548,8.64194857,2447.0,2446.9,4.0868]
[1728833542764,7.38990427,2447.0,2446.9,4.0868]
[1728833545644,3.8527922,2447.1,2447.0,4.08663]
[1728833546024,3.85207171,2447.1,2447.0,4.85983]
[1728833547625,3.85207171,2447.1,2447.0,4.08663]
[1728833549449,4.88952753,2447.1,2447.0,4.08663]
[1728833550145,3.85207171,2447.1,2447.0,4.08663]
[1728833551166,3.91144972,2447.1,2447.0,4.08663]
[1728833551359,3.91144972,2447.1,2447.0,4.85983]
[1728833553970,3.91144972,2447.1,2447.0,4.08663]
[1728833556273,0.05937801,2447.1,2447.0,4.08663]
[1728833556474,3.85207171,2447.3,2447.0,4.979783]
[1728833556682,3.85207171,2447.3,2447.2,4.0863]
[1728833557051,4.2793365,2447.3,2447.2,4.0863]
[1728833557235,3.0,2447.3,2447.2,4.0863]
[1728833557441,3.85193814,2447.3,2447.2,4.0863]
[1728833558595,5.67308894,2447.3,2447.2,4.0863]
[1728833558878,7.01081283,2447.3,2447.2,4.0863]
[1728833559254,5.73147633,2447.3,2447.2,4.0863]
[1728833559666,5.98592771,2447.3,2447.2,4.0863]
[1728833559857,5.18952771,2447.3,2447.2,4.0863]
[1728833561095,5.18952771,2447.3,2447.1,4.08643]
[1728833561262,7.5377097,2447.2,2447.1,4.08637]
[1728833562277,6.53711207,2447.2,2447.1,4.08637]
[1728833566082,6.59664867,2447.2,2447.1,4.08637]
[1728833567227,0.0595366,2447.2,2447.1,4.08637]
[1728833567623,7.81644857,2447.4,2447.3,4.08613]
[1728833568216,6.53711207,2447.4,2447.3,4.08613]
[1728833568435,7.81644857,2447.4,2447.3,4.08613]
[1728833569802,7.74528856,2447.4,2447.3,4.08613]
[1728833570550,9.45132644,2447.4,2447.3,4.08613]
[1728833570700,10.04867888,2447.4,2447.3,4.08613]
[1728833570905,11.34672075,2447.4,2447.3,4.08613]
[1728833571101,10.74936831,2447.4,2447.3,4.08613]
[1728833571435,9.45132644,2447.4,2447.3,4.08613]
[1728833572239,7.74528856,2447.4,2447.3,4.08613]
[1728833572611,9.88062842,2447.4,2447.3,4.08613]
[1728833573231,7.74528856,2447.4,2447.3,4.08613]
[1728833574115,9.88188398,2447.4,2447.3,4.08613]
[1728833575296,9.88190669,2447.4,2447.3,4.08613]
[1728833576353,11.45223153,2447.4,2447.3,4.08613]
[1728833577149,13.91323153,2447.4,2447.0,4.08649]
[1728833577352,8.24677028,2447.1,2447.0,4.08649]
[1728833577557,9.45494677,2447.1,2447.0,4.08649]
[1728833580704,5.9178347,2447.1,2447.0,4.08649]
[1728833581075,5.97732235,2447.1,2447.0,4.987076]
[1728833581386,4.34287032,2447.1,2447.0,5.778476]
[1728833581608,4.34287032,2447.1,2447.0,4.87789]
[1728833581763,9.51729597,2447.1,2447.0,4.08649]
[1728833581964,8.4049902,2447.1,2447.0,4.08649]
[1728833582270,7.80763776,2447.1,2447.0,4.08649]
[1728833583811,9.9457211,2447.1,2447.0,4.08649]
[1728833584110,9.9457211,2447.1,2447.0,5.695216]
[1728833584111,2.98099575,2447.1,2447.0,5.695216]
[1728833585315,5.98099575,2447.1,2447.0,4.87789]
[1728833588033,7.50014047,2447.1,2447.0,4.87789]
[1728833588494,7.92775375,2447.1,2447.0,4.08649]
[1728833590535,6.40860903,2447.1,2447.0,4.08649]
[1728833590747,7.92775375,2447.1,2447.0,4.08649]
[1728833592031,5.78967041,2447.1,2447.0,4.91839]
[1728833593137,7.92775375,2447.1,2447.0,4.91839]
[1728833594169,5.78967041,2447.1,2447.0,4.91839]
[1728833594378,7.92775375,2447.1,2447.0,4.91839]
[1728833594530,5.78967041,2447.1,2447.0,4.91839]
[1728833594742,7.92775375,2447.1,2447.0,4.91839]
[1728833595989,7.92775375,2447.1,2447.0,4.08649]
[1728833596279,8.18475995,2447.1,2447.0,4.08649]
[1728833597256,6.58607041,2447.1,2447.0,4.08649]
[1728833600975,5.78967041,2447.1,2447.0,4.08649]
[1728833603247,3.41099963,2447.1,2447.0,4.88679]
[1728833603466,1.34419201,2447.1,2447.0,4.88679]
[1728833603691,2.86333673,2447.1,2447.0,5.784146]
[1728833604693,5.86333673,2447.1,2447.0,5.784146]
[1728833606150,5.79072596,2447.1,2447.0,5.784146]
[1728833606354,4.34408524,2447.1,2447.0,5.784146]
[1728833606554,3.05948765,2447.1,2447.0,5.784146]
[1728833606800,0.91583952,2447.1,2447.0,5.784146]
[1728833606955,0.05948765,2447.1,2447.0,5.784146]
[1728833607160,0.91583952,2447.1,2447.0,5.784146]
[1728833607350,0.05948765,2447.1,2447.0,5.784146]
[1728833609816,0.85635187,2447.3,2447.2,4.8866]
[1728833610382,0.85635187,2447.3,2447.2,6.2822876]
[1728833611092,0.91401569,2447.3,2447.2,6.2822876]
[1728833611302,0.91401569,2447.3,2447.2,4.0863]
[1728833611897,1.34226141,2447.3,2447.2,4.0863]
[1728833612302,4.34226141,2447.3,2447.2,4.0863]
[1728833612927,0.8249,2447.2,2447.1,4.08638]
[1728833613129,9.57635735,2447.2,2447.1,4.08638]
[1728833613320,11.71568772,2447.2,2447.1,4.08638]
[1728833614119,11.71362452,2447.2,2447.1,4.08638]
[1728833614534,9.57635735,2447.2,2447.0,4.08662]
[1728833614682,3.0,2447.0,2446.9,4.0868]
[1728833614888,10.69759329,2447.0,2446.9,4.0868]
[1728833615115,10.75499048,2447.0,2446.9,4.0868]
[1728833615979,8.61804375,2447.0,2446.9,4.0868]
[1728833616179,11.9262531,2447.0,2446.9,4.0868]
[1728833616414,9.78930637,2447.0,2446.9,4.0868]
[1728833617108,11.9262531,2447.0,2446.9,4.0868]
[1728833617313,9.78930637,2447.0,2446.9,4.0868]
[1728833618080,11.49869616,2447.0,2446.9,4.0868]
[1728833618389,9.50251959,2447.0,2446.9,4.0868]
[1728833620428,6.40410458,2447.0,2446.9,4.0868]
[1728833620636,6.40410458,2447.0,2446.8,4.08695]
[1728833620637,9.50178572,2447.0,2446.8,4.08688]
[1728833620787,5.91860288,2446.9,2446.8,4.08688]
[1728833621122,7.51555161,2446.9,2446.8,4.08688]
[1728833621687,5.80702156,2446.9,2446.8,4.08688]
[1728833621916,7.94365612,2446.9,2446.8,4.08688]
[1728833622431,7.51586499,2446.9,2446.8,4.08688]
[1728833622633,7.51583613,2446.9,2446.8,4.08688]
[1728833622819,5.80702156,2446.9,2446.8,4.08688]
[1728833623020,5.80702156,2446.9,2446.5,4.08736]
[1728833623021,0.758,2446.7,2446.5,4.08736]
[1728833623189,7.80718348,2446.6,2446.5,4.08736]
[1728833623389,7.86438603,2446.6,2446.5,4.08736]
[1728833623628,9.50049862,2446.6,2446.5,4.08736]
[1728833624117,9.50004755,2446.6,2446.5,4.08736]
[1728833624298,10.85408681,2446.6,2446.5,4.08736]
[1728833625595,3.0,2446.5,2446.4,4.08761]
[1728833625794,4.28015732,2446.5,2446.4,4.08761]
[1728833626025,4.33735987,2446.5,2446.4,4.08761]
[1728833626191,5.71923122,2446.5,2446.4,4.08761]
[1728833627232,0.758,2446.4,2446.0,4.08814]
[1728833627399,7.80561235,2446.1,2446.0,4.08814]
[1728833627914,6.52567373,2446.1,2446.0,4.08814]
[1728833628099,7.86219482,2446.1,2446.0,4.08814]
[1728833628299,7.43519907,2446.1,2446.0,4.08814]
[1728833628623,7.85925653,2446.1,2446.0,4.08814]
[1728833629350,7.00631366,2446.1,2446.0,4.08814]
[1728833629812,6.5822562,2446.1,2446.0,4.08814]
[1728833635116,7.3768562,2446.1,2446.0,4.08814]
[1728833635322,11.7554728,2446.1,2446.0,4.08814]
[1728833635522,10.90252993,2446.1,2446.0,4.08814]
[1728833635759,11.7554728,2446.1,2446.0,4.08814]
[1728833635985,12.20607107,2446.1,2446.0,4.08814]
[1728833636671,3.0,2446.0,2445.2,0.8032]
[1728833636960,1.65404287,2445.9,2445.7,4.08868]
[1728833637159,23.58339815,2445.8,2445.7,4.08868]
[1728833637348,23.58339815,2445.8,2445.5,4.08904]
[1728833637349,0.8011,2445.6,2445.5,4.08904]
[1728833637878,0.85683133,2445.6,2445.5,4.08904]
[1728833638374,4.38250506,2445.6,2445.5,4.08914]
[1728833638668,8.26538967,2445.6,2445.5,4.08914]
[1728833641454,6.58140506,2445.6,2445.5,4.08914]
[1728833642463,3.0,2445.5,2445.4,4.08929]
[1728833642829,3.05516847,2445.5,2445.3,4.08944]
[1728833643037,3.05516847,2445.5,2444.9,4.09001]
[1728833643038,3.0,2445.3,2444.9,4.09001]
[1728833643274,6.52567373,2445.0,2444.9,4.09001]
[1728833643849,7.23340959,2445.0,2444.9,4.09001]
[1728833644039,3.0,2444.9,2444.8,8.1805]
[1728833644243,3.0,2444.9,2444.8,4.0902]
[1728833644474,3.0549736,2444.9,2444.8,4.0902]
[1728833646233,3.0549736,2444.9,2444.8,4.8934]
[1728833647284,0.0549736,2444.9,2444.8,5.791785]
[1728833647681,3.52567373,2445.4,2444.8,5.791785]
[1728833647682,3.52567373,2445.4,2445.3,4.89267]
[1728833648166,3.58021419,2445.4,2445.3,4.89267]
[1728833648483,0.05454046,2445.4,2445.3,4.89267]
[1728833648685,0.8011,2446.1,2446.0,4.0883]
[1728833648885,4.32677373,2446.1,2446.0,4.0883]
[1728833649076,4.85605128,2446.1,2446.0,4.0883]
[1728833649268,4.05495128,2446.1,2446.0,4.0883]
[1728833649451,3.58053906,2446.1,2446.0,4.0883]
[1728833650867,6.58053906,2446.1,2446.0,4.0883]
[1728833651441,3.8011,2446.0,2445.8,4.0885]
[1728833651645,3.0,2445.8,2445.7,4.08876]
[1728833651844,6.52567373,2445.8,2445.5,4.08901]
[1728833652080,6.52567373,2445.6,2445.5,4.08901]
[1728833652883,6.58148443,2445.6,2445.5,4.08901]
[1728833653440,3.0,2445.5,2445.4,4.08928]
[1728833653646,3.73861844,2445.5,2445.4,4.08928]
[1728833653958,3.79430647,2445.5,2445.3,8.17884]
[1728833654143,6.52567373,2445.4,2445.3,4.08939]
[1728833654699,6.58136176,2445.4,2445.3,4.08939]
[1728833654909,9.77435978,2445.4,2445.3,4.08939]
[1728833655114,29.76435978,2445.4,2445.3,4.08939]
[1728833655265,29.03236176,2445.4,2445.3,4.08939]